fUST/lending_fUST_20241211
["ID","MTS","AMOUNT","RATE_DAILY","PERIOD"]
[344913555,1733872528442,-166.77272654,0.00038356,120]
[344913558,1733872805862,164.504024,0.00013973,2]
[344913563,1733873309891,9055.57284279,0.0002,2]
[344913586,1733873415047,3871.78127791,0.00020101,2]
[344913588,1733873427409,548.0,0.0002,3]
[344913589,1733873427775,545.0,0.0002,3]
[344913590,1733873428007,545.0,0.0002,3]
[344913591,1733873428307,545.0,0.0002,3]
[344913592,1733873429460,150.0,0.0002,3]
[344913593,1733873429758,150.0,0.0002,3]
[344913611,1733873432626,-300.0,0.00020376,2]
[344913613,1733873432636,-300.0,0.00020376,2]
[344913615,1733873432646,-18285.0024031,0.00020377,2]
[344913620,1733873432783,-1112.4,0.00020377,2]
[344913661,1733873438879,-505.66250786,0.00020377,2]
[344913662,1733873438900,-1293.8595959,0.00020377,2]
[344913663,1733873438911,-6514.64373898,0.00021,2]
[344913665,1733873438920,-1445.18760129,0.00022,2]
[344913666,1733873438930,-420.0,0.00022179,2]
[344913668,1733873438939,-420.0,0.00022414,2]
[344913670,1733873438949,-2709.751732,0.00022683,2]
[344913671,1733873438959,-1406.95615384,0.000229,2]
[344913672,1733873438969,-5282.13596471,0.00023,2]
[344913673,1733873438979,-159.0,0.00023,2]
[344913674,1733873438990,-1406.95615381,0.00023906,2]
[344913675,1733873439004,-587.0,0.00024141,2]
[344913676,1733873439014,-159.0,0.00024164,2]
[344913677,1733873439026,-587.0,0.00024655,2]
[344913678,1733873439036,-1406.95615381,0.00024912,2]
[344913679,1733873439046,-283.74426133,0.00024989,2]
[344913680,1733873439056,-500.0,0.00024989,2]
[344913681,1733873439067,-500.0,0.00024989,2]
[344913682,1733873439077,-369.98784355,0.00024989,2]
[344913683,1733873439087,-216.67578732,0.00024989,2]
[344913684,1733873439098,-500.0,0.00024989,2]
[344913685,1733873439107,-556.50886557,0.00024989,2]
[344913686,1733873439117,-100126.12084867,0.0002499,5]
[344913687,1733873439127,-166.25132327,0.00025,2]
[344913688,1733873439137,-542.7944177,0.00025666,2]
[344913689,1733873439147,-1406.95615381,0.00025918,2]
[344913690,1733873439157,-259.6427729,0.00026,10]
[344913691,1733873439166,-92809.30335085,0.00026,30]
[344913692,1733873439176,-530.96800447,0.00026,2]
[344913693,1733873439185,-512.20861782,0.00026,2]
[344913694,1733873439196,-10790.28011141,0.00026,2]
[344913695,1733873439205,-5446.08156022,0.00026,30]
[344913696,1733873439214,-3638.57572835,0.00026,2]
[344913697,1733873439223,-500.0,0.00026037,2]
[344913698,1733873439233,-203.35456702,0.00026037,2]
[344913699,1733873439243,-203.64131089,0.00026037,2]
[344913700,1733873439258,-188.00762677,0.00026037,2]
[344913701,1733873439271,-24900.0,0.00026038,2]
[344913702,1733873439281,-823.0,0.00026277,2]
[344913703,1733873439292,-179.50874,0.00026287,2]
[344913704,1733873439302,-660.0,0.00026404,2]
[344913705,1733873439311,-167.538074,0.0002643,2]
[344913706,1733873439322,-556.971138,0.00026458,2]
[344913707,1733873439333,-101466.24427079,0.000265,2]
[344913708,1733873439342,-764.3288433,0.0002661,30]
[344913709,1733873439352,-1406.95615381,0.00026925,2]
[344913710,1733873439362,-87312.43644712,0.00027,2]
[344913711,1733873439371,-3621.37653774,0.00027,2]
[344913712,1733873439381,-180.14613687,0.00027,2]
[344913713,1733873439390,-823.0,0.0002712,2]
[344913714,1733873439400,-166.786069,0.00027292,2]
[344913715,1733873439411,-167.538074,0.00027734,2]
[344913716,1733873439421,-155.08885019,0.00027785,2]
[344913717,1733873439430,-247.04728129,0.00027806,2]
[344913718,1733873439440,-172.148,0.00027865,18]
[344913719,1733873439450,-1406.95615381,0.00027931,2]
[344913720,1733873439459,-631.033,0.0002854,2]
[344913721,1733873439469,-1152.0,0.00028601,2]
[344913722,1733873439479,-7046.62583619,0.00028785,2]
[344913723,1733873439489,-1406.95615381,0.00028937,2]
[344913724,1733873439502,-1000.0,0.00029,10]
[344913725,1733873439512,-251.71454,0.00029,120]
[344913726,1733873439522,-167.538074,0.00029038,2]
[344913727,1733873439531,-1000.0,0.000291,10]
[344913728,1733873439543,-9024.97829099,0.000291,2]
[344913729,1733873439553,-7046.62583619,0.00029151,2]
[344913730,1733873439567,-155.00444251,0.00029174,2]
[344913731,1733873439577,-1000.0,0.000292,15]
[344913732,1733873439587,-1000.0,0.000293,15]
[344913733,1733873439598,-166.786069,0.00029333,2]
[344913734,1733873439608,-1000.0,0.000294,10]
[344913735,1733873439617,-1126.31553726,0.000295,5]
[344913736,1733873439627,-1500.0,0.000295,5]
[344913737,1733873439637,-1500.0,0.000295,5]
[344913738,1733873439647,-1000.0,0.000295,20]
[344913739,1733873439657,-7046.6258362,0.0002958,2]
[344913740,1733873439667,-1000.0,0.000296,15]
[344913741,1733873439676,-1000.0,0.000297,15]
[344913742,1733873439686,-297.05570082,0.00029763,2]
[344913743,1733873439696,-297.05570079,0.00029783,2]
[344913744,1733873439706,-1500.0,0.000298,5]
[344913745,1733873439715,-1500.0,0.000298,5]
[344913746,1733873439725,-511.5679191,0.000298,5]
[344913747,1733873439735,-679.0,0.000298,10]
[344913748,1733873439747,-407.973412,0.000298,2]
[344913749,1733873439757,-297.05570079,0.00029803,2]
[344913750,1733873439767,-297.05570079,0.00029823,2]
[344913751,1733873439777,-1152.0,0.00029833,2]
[344913752,1733873439786,-297.05570079,0.00029843,2]
[344913753,1733873439796,-500.0,0.00029862,7]
[344913754,1733873439806,-277405.85843344,0.00029863,2]
[344913755,1733873439816,-2244.86285188,0.00029863,2]
[344913756,1733873439826,-500.0,0.00029863,2]
[344913757,1733873439836,-500.0,0.00029863,2]
[344913758,1733873439845,-500.0,0.00029863,2]
[344913759,1733873439855,-500.0,0.00029863,2]
[344913760,1733873439865,-613.29332379,0.00029863,7]
[344913761,1733873439875,-500.0,0.00029863,7]
[344913762,1733873439885,-500.0,0.00029863,7]
[344913763,1733873439894,-500.0,0.00029863,7]
[344913764,1733873439904,-500.0,0.00029863,7]
[344913765,1733873439915,-500.0,0.00029863,7]
[344913766,1733873439925,-500.0,0.00029863,7]
[344913767,1733873439934,-500.0,0.00029863,7]
[344913768,1733873439943,-500.0,0.00029863,2]
[344913769,1733873439953,-500.0,0.00029863,2]
[344913770,1733873439963,-500.0,0.00029863,2]
[344913771,1733873439973,-500.0,0.00029863,2]
[344913772,1733873439985,-500.0,0.00029863,7]
[344913773,1733873439996,-500.0,0.00029863,7]
[344913774,1733873440006,-500.0,0.00029863,7]
[344913775,1733873440015,-376.95058209,0.00029863,7]
[344913776,1733873440026,-291.32619365,0.00029863,7]
[344913777,1733873440035,-420.94850272,0.00029863,7]
[344913778,1733873440046,-383.82505161,0.00029863,7]
[344913779,1733873440056,-186.81296489,0.00029863,7]
[344913780,1733873440066,-192.51494003,0.00029863,7]
[344913781,1733873440076,-379.37750152,0.00029863,7]
[344913782,1733873440086,-385.51433413,0.00029863,7]
[344913783,1733873440096,-500.0,0.00029863,7]
[344913784,1733873440106,-500.0,0.00029863,7]
[344913785,1733873440116,-500.0,0.00029863,7]
[344913786,1733873440126,-500.0,0.00029863,7]
[344913787,1733873440135,-240.98985543,0.00029863,7]
[344913788,1733873440144,-500.0,0.00029863,7]
[344913789,1733873440154,-500.0,0.00029863,7]
[344913790,1733873440163,-439.59262596,0.00029863,7]
[344913791,1733873440173,-197.30619279,0.00029863,7]
[344913792,1733873440183,-500.0,0.00029863,7]
[344913793,1733873440193,-151.15440365,0.00029863,7]
[344913794,1733873440203,-305.85861049,0.00029863,7]
[344913795,1733873440213,-248.96387594,0.00029863,7]
[344913796,1733873440224,-445.47651694,0.00029863,7]
[344913797,1733873440233,-478.78783351,0.00029863,7]
[344913799,1733873440243,-247.49517167,0.00029863,7]
[344913800,1733873440255,-203.29827685,0.00029863,7]
[344913801,1733873440265,-426.23998747,0.00029863,7]
[344913802,1733873440275,-317.33268501,0.00029863,7]
[344913803,1733873440285,-173.18502549,0.00029863,7]
[344913804,1733873440295,-236.14808777,0.00029863,7]
[344913805,1733873440305,-295.56160784,0.00029863,7]
[344913807,1733873440315,-438.98303213,0.00029863,7]
[344913809,1733873440324,-276.21124618,0.00029863,7]
[344913810,1733873440334,-152.47892931,0.00029863,7]
[344913811,1733873440343,-411.26290681,0.00029863,7]
[344913812,1733873440354,-447.88045609,0.00029863,7]
[344913813,1733873440363,-422.78545896,0.00029863,7]
[344913815,1733873440378,-317.9151743,0.00029863,7]
[344913817,1733873440388,-415.59357505,0.00029863,7]
[344913818,1733873440398,-192.99666508,0.00029863,7]
[344913819,1733873440408,-359.98434479,0.00029863,7]
[344913820,1733873440418,-413.18342877,0.00029863,7]
[344913821,1733873440428,-222.33027645,0.00029863,7]
[344913822,1733873440438,-230.21850864,0.00029863,7]
[344913823,1733873440447,-327.13902298,0.00029863,7]
[344913824,1733873440457,-344.0830681,0.00029863,7]
[344913825,1733873440467,-168.11644545,0.00029863,7]
[344913826,1733873440477,-305.25033032,0.00029863,7]
[344913827,1733873440486,-318.80885069,0.00029863,7]
[344913828,1733873440498,-477.03783125,0.00029863,7]
[344913829,1733873440508,-177.70437588,0.00029863,7]
[344913830,1733873440518,-191.11452706,0.00029863,7]
[344913831,1733873440527,-439.89755113,0.00029863,7]
[344913832,1733873440537,-191.56897836,0.00029863,7]
[344913834,1733873440547,-228.13848437,0.00029863,7]
[344913836,1733873440557,-195.51517652,0.00029863,7]
[344913837,1733873440566,-188.15139087,0.00029863,7]
[344913839,1733873440575,-376.19357524,0.00029863,7]
[344913840,1733873440585,-329.53972934,0.00029863,7]
[344913841,1733873440594,-165.69514364,0.00029863,7]
[344913844,1733873440724,-199.95545006,0.00029863,7]
[344913845,1733873440734,-264.20443537,0.00029863,7]
[344913846,1733873440744,-268.17842188,0.00029863,7]
[344913847,1733873440755,-500.0,0.00029863,7]
[344913848,1733873440765,-290.09299924,0.00029863,7]
[344913849,1733873440775,-420.60328016,0.00029863,7]
[344913850,1733873440787,-230.27834929,0.00029863,7]
[344913851,1733873440797,-248.48,0.00029863,7]
[344913852,1733873440807,-500.0,0.00029863,7]
[344913853,1733873440817,-500.0,0.00029863,7]
[344913854,1733873440826,-500.0,0.00029863,7]
[344913855,1733873440836,-289.6478459,0.00029863,7]
[344913856,1733873440846,-162.38551293,0.00029863,7]
[344913857,1733873440855,-257.11803116,0.00029863,7]
[344913858,1733873440864,-187.63391114,0.00029863,7]
[344913859,1733873440874,-307.71252655,0.00029863,7]
[344913860,1733873440883,-523.90012527,0.00029863,7]
[344913861,1733873440892,-356.31340316,0.00029863,7]
[344913862,1733873440902,-500.0,0.00029863,7]
[344913863,1733873440912,-258.99373927,0.00029863,7]
[344913864,1733873440922,-483.94861088,0.00029863,7]
[344913865,1733873440933,-333.97963005,0.00029863,7]
[344913866,1733873440943,-344.44252114,0.00029863,7]
[344913867,1733873440953,-199.23098424,0.00029863,7]
[344913868,1733873440963,-467.60193785,0.00029863,7]
[344913869,1733873440973,-260.77022037,0.00029863,7]
[344913870,1733873440984,-206.41511923,0.00029863,7]
[344913871,1733873440997,-250.03338456,0.00029863,7]
[344913872,1733873441006,-179.83546841,0.00029863,7]
[344913873,1733873441016,-231.25070868,0.00029863,7]
[344913874,1733873441027,-479.3448467,0.00029863,7]
[344913875,1733873441036,-152.34455701,0.00029863,7]
[344913876,1733873441045,-377.09685256,0.00029863,7]
[344913877,1733873441054,-422.08244004,0.00029863,7]
[344913878,1733873441065,-244.3593358,0.00029863,7]
[344913879,1733873441074,-154.46422689,0.00029863,7]
[344913880,1733873441084,-500.0,0.00029863,7]
[344913881,1733873441093,-441.42021269,0.00029863,7]
[344913882,1733873441102,-543.72335969,0.00029863,7]
[344913883,1733873441111,-423.76593917,0.00029863,7]
[344913884,1733873441121,-449.49562848,0.00029863,7]
[344913885,1733873441131,-226.54581284,0.00029863,7]
[344913886,1733873441141,-268.10407624,0.00029863,7]
[344913887,1733873441151,-662.96,0.00029863,7]
[344913888,1733873441161,-662.96,0.00029863,7]
[344913889,1733873441171,-662.96,0.00029863,7]
[344913890,1733873441180,-662.96,0.00029863,7]
[344913891,1733873441190,-662.96,0.00029863,7]
[344913892,1733873441199,-159.81367512,0.00029863,7]
[344913893,1733873441209,-178.36289991,0.00029863,7]
[344913894,1733873441218,-508.45984219,0.00029863,7]
[344913895,1733873441227,-500.0,0.00029863,7]
[344913896,1733873441237,-500.0,0.00029863,7]
[344913897,1733873441250,-500.0,0.00029863,7]
[344913898,1733873441261,-192.68804687,0.00029863,7]
[344913899,1733873441319,-230.05010563,0.00029863,7]
[344913900,1733873441329,-221.17403939,0.00029863,7]
[344913901,1733873441338,-500.0,0.00029863,7]
[344913902,1733873441348,-500.0,0.00029863,7]
[344913903,1733873441359,-168.63963304,0.00029863,7]
[344913929,1733873641380,200.0,0.00025205,14]
[344913930,1733873692110,170.301639,0.00013973,2]
[344913934,1733873983194,5579.6625152,0.0002,2]
[344913980,1733874631801,-4357.19891326,0.00023821,2]
[344913982,1733874631810,-195.60405147,0.00024551,2]
[344913984,1733874631820,-947.50688048,0.000249,2]
[344913986,1733874631829,-168.0,0.00025,2]
[344913988,1733874631839,-278.62821,0.00025929,2]
[344913990,1733874631848,-278.62821,0.00026889,2]
[344913992,1733874631858,-162.44158687,0.00027397,2]
[344913994,1733874631867,-300.0,0.00027562,2]
[344913996,1733874631876,-300.0,0.00027562,2]
[344913998,1733874631886,-989.40358956,0.00027565,2]
[344914000,1733874631895,-172.541479,0.00027565,2]
[344914002,1733874631904,-713.80690928,0.00027772,2]
[344914005,1733874631914,-24900.0,0.00027801,2]
[344914008,1733874631923,-250.0,0.00027804,2]
[344914012,1733874631933,-177.1273243,0.00027809,2]
[344914016,1733874631942,-278.62821,0.00027848,2]
[344914020,1733874631951,-627.911292,0.00027872,2]
[344914024,1733874631963,-713.80690924,0.00028083,2]
[344914028,1733874631973,-457.6395936,0.00028384,30]
[344914032,1733874631982,-713.80690924,0.00028395,2]
[344914036,1733874631992,-657.365,0.0002854,2]
[344914040,1733874632001,-287.17983526,0.00028706,2]
[344914251,1733874637957,-426.62707398,0.00028706,2]
[344914253,1733874637970,-278.62821,0.00028807,2]
[344914255,1733874637979,-713.80690924,0.00029018,2]
[344914257,1733874637988,-318.7921254,0.00029096,30]
[344914259,1733874637998,-306.0,0.00029233,30]
[344914261,1733874638008,-458.7904386,0.00029233,30]
[344914263,1733874638018,-213.5058504,0.00029233,30]
[344914264,1733874638027,-213.5058504,0.00029233,30]
[344914266,1733874638036,-213.5058504,0.00029233,30]
[344914268,1733874638046,-213.5058504,0.00029233,30]
[344914270,1733874638055,-213.5058504,0.00029233,30]
[344914272,1733874638065,-180.4887963,0.00029233,30]
[344914274,1733874638075,-500.0,0.00029291,7]
[344914275,1733874638084,-713.80690924,0.00029329,2]
[344914276,1733874638094,-302.75782099,0.00029357,2]
[344914278,1733874638104,-237.01404014,0.00029387,2]
[344914279,1733874638113,-1000.0,0.00029585,10]
[344914280,1733874638123,-713.80690924,0.00029641,2]
[344914281,1733874638132,-302.75782099,0.00029651,2]
[344914282,1733874638142,-264.21247917,0.00029708,2]
[344914283,1733874638151,-170.9141674,0.00029763,2]
[344914284,1733874638161,-278.62821,0.00029767,2]
[344914285,1733874638170,-420.0,0.0002978,2]
[344914286,1733874638180,-1004.09645731,0.000298,7]
[344914287,1733874638192,-1250.18354269,0.000298,7]
[344914288,1733874638202,-500.0,0.00029862,2]
[344914289,1733874638212,-500.0,0.00029862,2]
[344914290,1733874638223,-500.0,0.00029862,2]
[344914291,1733874638232,-500.0,0.00029862,2]
[344914292,1733874638242,-320.15338407,0.00029862,2]
[344914293,1733874638251,-500.0,0.00029862,2]
[344914294,1733874638261,-500.0,0.00029862,2]
[344914295,1733874638271,-500.0,0.00029862,2]
[344914296,1733874638281,-500.0,0.00029862,2]
[344914297,1733874638291,-153.3353733,0.00029862,2]
[344914298,1733874638301,-500.0,0.00029862,2]
[344914299,1733874638310,-500.0,0.00029862,2]
[344914300,1733874638319,-500.0,0.00029862,2]
[344914301,1733874638329,-500.0,0.00029862,2]
[344914302,1733874638339,-500.0,0.00029862,2]
[344914303,1733874638348,-500.0,0.00029862,2]
[344914304,1733874638358,-24.52522146,0.00029862,2]
[344914398,1733875073797,170.301639,0.00013973,2]
[344914400,1733875695317,166.140385,0.0002,3]
[344914450,1733875832069,-237.49450623,0.00022787,2]
[344914452,1733875832079,-1414.65896185,0.00023721,2]
[344914455,1733875832090,-107.05425756,0.00023721,2]
[344914457,1733875832099,-172.541479,0.00026102,2]
[344914459,1733875832108,-267.546676,0.00026487,2]
[344914460,1733875832117,-250.0,0.00026827,2]
[344914462,1733875832127,-161.7163616,0.00027397,2]
[344914464,1733875832136,-179.50874,0.00027985,2]
[344914466,1733875832145,-1266.0,0.00028,7]
[344914468,1733875832154,-300.0,0.00028131,2]
[344914470,1733875832163,-300.0,0.00028131,2]
[344914472,1733875832172,-24900.0,0.00028132,2]
[344914474,1733875832182,-313.955646,0.00028142,2]
[344914476,1733875832191,-181.91101613,0.00028235,2]
[344914478,1733875832201,-629.648,0.0002837,2]
[344914480,1733875832211,-173.69797599,0.00028663,2]
[344914482,1733875832221,-172.453297,0.00028763,2]
[344914484,1733875832230,-173.69797598,0.00028985,2]
[344914486,1733875832239,-519.80399553,0.00029,2]
[344914488,1733875832248,-302.75782099,0.00029,2]
[344914490,1733875832257,-302.75782099,0.00029208,2]
[344914492,1733875832267,-166.140385,0.00029233,30]
[344914494,1733875832277,-302.75782099,0.0002929,2]
[344914496,1733875832286,-173.69797598,0.00029308,2]
[344914498,1733875832295,-302.75782099,0.000295,2]
[344914500,1733875832304,-302.75782099,0.0002958,2]
[344914502,1733875832313,-173.69797598,0.0002963,2]
[344914504,1733875832323,-1464.70946679,0.00029763,2]
[344914506,1733875832332,-2986.26374063,0.00029763,2]
[344914508,1733875832341,-666.0,0.00029763,2]
[344914510,1733875832350,-2062.59180344,0.00029763,7]
[344914512,1733875832359,-2062.59180344,0.00029763,7]
[344914513,1733875832368,-111.97917006,0.00029763,7]
[344914514,1733875832380,-1950.61263338,0.00029763,7]
[344914515,1733875832390,-2062.59180344,0.00029763,7]
[344914517,1733875832399,-2062.59180344,0.00029763,7]
[344914519,1733875832408,-2062.59180344,0.00029763,7]
[344914532,1733875832418,-2062.59180344,0.00029763,7]
[344914535,1733875832548,-2062.59180344,0.00029763,7]
[344914537,1733875832558,-2062.59180344,0.00029763,7]
[344914539,1733875832567,-2062.59180344,0.00029763,7]
[344914541,1733875832576,-2062.59180344,0.00029763,7]
[344914543,1733875832585,-2062.59180344,0.00029763,7]
[344914545,1733875832594,-2062.59180344,0.00029763,7]
[344914547,1733875832603,-2062.59180344,0.00029763,7]
[344914549,1733875832612,-2062.59180344,0.00029763,7]
[344914551,1733875832622,-2062.59180344,0.00029763,7]
[344914553,1733875832631,-2062.59180344,0.00029763,7]
[344914555,1733875832640,-2062.59180344,0.00029763,7]
[344914557,1733875832649,-2062.59180344,0.00029763,7]
[344914559,1733875832659,-2062.59,0.00029763,7]
[344914561,1733875832668,-3093.88770515,0.00029763,7]
[344914563,1733875832678,-3093.88770515,0.00029763,7]
[344914565,1733875832689,-3093.88770515,0.00029763,7]
[344914567,1733875832698,-3093.88770515,0.00029763,7]
[344914569,1733875832708,-3093.88770515,0.00029763,7]
[344914571,1733875832717,-3093.88770515,0.00029763,7]
[344914573,1733875832726,-3093.88770515,0.00029763,7]
[344914575,1733875832735,-3093.88770515,0.00029763,7]
[344914577,1733875832745,-3093.88770515,0.00029763,7]
[344914579,1733875832754,-3093.88770515,0.00029763,7]
[344914581,1733875832765,-3093.88770515,0.00029763,7]
[344914583,1733875832777,-3093.88770515,0.00029763,7]
[344914585,1733875832786,-3093.88770515,0.00029763,7]
[344914587,1733875832795,-3093.88770515,0.00029763,7]
[344914589,1733875832804,-3093.88770515,0.00029763,7]
[344914591,1733875832815,-2588.1638655,0.00029763,7]
[344914596,1733875832855,-505.72383965,0.00029763,7]
[344914598,1733875832864,-3093.88770515,0.00029763,7]
[344914600,1733875832874,-3093.88770515,0.00029763,7]
[344914602,1733875832883,-3093.88770515,0.00029763,7]
[344914604,1733875832892,-1000.13383267,0.00029783,2]
[344914606,1733875832901,-2986.26374062,0.00029784,2]
[344914608,1733875832911,-302.75782099,0.00029792,2]
[344914610,1733875832920,-166.140385,0.000298,10]
[344914612,1733875832929,-151.89163046,0.00029802,2]
[344914614,1733875832941,-2986.26374062,0.00029805,2]
[344914616,1733875832950,-1464.70946679,0.0002981,2]
[344914618,1733875832958,-2986.26374062,0.00029826,2]
[344914620,1733875832968,-2986.26374062,0.00029847,2]
[344914622,1733875832977,-35378.03858825,0.00029855,2]
[344915307,1733875839934,-326.73548754,0.00029783,2]
[344915313,1733875839985,-258.90495525,0.00029783,2]
[344915315,1733875839995,-500.0,0.00029783,2]
[344915318,1733875840005,-500.0,0.00029783,2]
[344915320,1733875840014,-500.0,0.00029783,2]
[344915322,1733875840024,-500.0,0.00029783,2]
[344915324,1733875840034,-506.08695184,0.00029783,2]
[344915326,1733875840043,-500.0,0.00029783,2]
[344915328,1733875840052,-25.02282663,0.00029783,2]
[344915330,1733875840064,-474.97717337,0.00029783,2]
[344915332,1733875840073,-338.20240306,0.00029783,2]
[344915656,1733875843229,-161.79759694,0.00029783,2]
[344915658,1733875843239,-500.0,0.00029783,2]
[344915661,1733875843249,-500.0,0.00029783,2]
[344915663,1733875843261,-500.0,0.00029783,2]
[344915665,1733875843273,-500.0,0.00029783,2]
[344915667,1733875843283,-356.8139681,0.00029783,2]
[344915669,1733875843292,-39.12084606,0.00029783,2]
[344916911,1733876145730,169.137134,0.00013973,2]
[344916913,1733876910567,10716.93326661,0.0001888,2]
[344916969,1733877038096,-300.00065781,0.00022,2]
[344916971,1733877038109,-161.0,0.00025,2]
[344916974,1733877038119,-68.98271946,0.00026389,2]
[344917176,1733877040169,-181.01728054,0.00026389,2]
[344917178,1733877040179,-300.0,0.00027839,2]
[344917180,1733877040192,-300.0,0.00027839,2]
[344917182,1733877040208,-119.55411185,0.0002784,5]
[344917561,1733877046113,-380.44588815,0.0002784,5]
[344917563,1733877046123,-500.0,0.0002784,5]
[344917565,1733877046132,-500.0,0.0002784,5]
[344917567,1733877046142,-500.0,0.0002784,5]
[344917569,1733877046156,-500.0,0.0002784,5]
[344917571,1733877046166,-500.0,0.0002784,5]
[344917574,1733877046175,-500.0,0.0002784,5]
[344917576,1733877046184,-196.64710403,0.0002784,5]
[344917578,1733877046194,-2145.51404403,0.00027841,2]
[344917581,1733877046206,-1446.92116279,0.00027841,2]
[344917583,1733877046217,-19346.2,0.00027841,2]
[344917635,1733877329909,169.137134,0.00013973,2]
[344917638,1733877924546,467.4,0.00023,30]
[344917672,1733878225742,169.137134,0.00013973,2]
[344917727,1733878232436,-166.140386,0.0002631,30]
[344917729,1733878232448,-172.541479,0.00027156,2]
[344917731,1733878232458,-373.69365607,0.00027741,2]
[344917733,1733878232468,-1000.0,0.000278,2]
[344917735,1733878232477,-1000.0,0.000278,3]
[344917737,1733878232490,-1000.0,0.000278,4]
[344917739,1733878232500,-1000.0,0.000278,5]
[344917741,1733878232510,-300.0,0.00027847,2]
[344917743,1733878232520,-300.0,0.00027847,2]
[344917745,1733878232531,-19151.9282727,0.00027848,2]
[344917747,1733878232540,-179.50874,0.00028014,2]
[344917749,1733878232550,-313.9556463,0.00028255,2]
[344917751,1733878232560,-603.218,0.0002837,2]
[344917754,1733878232571,-157866.30722564,0.000288,2]
[344917757,1733878232581,-1275.62497503,0.000288,2]
[344917760,1733878232592,-1000.0,0.000288,6]
[344917762,1733878232601,-1000.0,0.000288,7]
[344917764,1733878232612,-1000.0,0.000288,8]
[344917766,1733878232621,-1000.0,0.000288,9]
[344917768,1733878232632,-1000.0,0.000288,10]
[344917770,1733878232642,-1000.0,0.000288,11]
[344917772,1733878232652,-1000.0,0.000288,12]
[344917790,1733878232813,-297.08161921,0.00028988,7]
[344917793,1733878232835,-388.00001,0.00028988,7]
[344917795,1733878232847,-434.6674,0.00028988,7]
[344917980,1733878238278,-500.0,0.00028799,2]
[344917982,1733878238289,-500.0,0.00028799,2]
[344917984,1733878238299,-500.0,0.00028799,2]
[344917986,1733878238308,-500.0,0.00028799,2]
[344917988,1733878238317,-338.42841974,0.00028799,2]
[344917990,1733878238327,-500.0,0.00028799,2]
[344917992,1733878238336,-500.0,0.00028799,2]
[344917994,1733878238346,-500.0,0.00028799,2]
[344917996,1733878238355,-538.02150135,0.00028799,2]
[344917998,1733878238364,-500.0,0.00028799,2]
[344918000,1733878238374,-500.0,0.00028799,2]
[344918002,1733878238383,-500.0,0.00028799,2]
[344918004,1733878238393,-500.0,0.00028799,2]
[344918006,1733878238402,-500.0,0.00028799,2]
[344918008,1733878238411,-500.0,0.00028799,2]
[344918010,1733878238421,-500.0,0.00028799,2]
[344918012,1733878238430,-500.0,0.00028799,2]
[344918014,1733878238439,-500.0,0.00028799,2]
[344918016,1733878238449,-500.0,0.00028799,2]
[344918019,1733878238459,-500.0,0.00028799,2]
[344918022,1733878238468,-500.0,0.00028799,2]
[344918024,1733878238477,-500.0,0.00028799,2]
[344918026,1733878238489,-500.0,0.00028799,2]
[344918028,1733878238499,-500.0,0.00028799,2]
[344918030,1733878238508,-500.0,0.00028799,2]
[344918032,1733878238518,-500.0,0.00028799,2]
[344918034,1733878238528,-500.0,0.00028799,2]
[344918036,1733878238540,-500.0,0.00028799,2]
[344918038,1733878238550,-500.0,0.00028799,2]
[344918040,1733878238562,-500.0,0.00028799,2]
[344918042,1733878238573,-500.0,0.00028799,2]
[344918044,1733878238583,-500.0,0.00028799,2]
[344918046,1733878238592,-500.0,0.00028799,2]
[344918048,1733878238602,-500.0,0.00028799,2]
[344918050,1733878238611,-500.0,0.00028799,2]
[344918052,1733878238622,-500.0,0.00028799,2]
[344918054,1733878238632,-500.0,0.00028799,2]
[344918056,1733878238641,-500.0,0.00028799,2]
[344918058,1733878238652,-261.29524611,0.00028799,2]
[344918060,1733878238661,-500.0,0.00028799,2]